bitfinex/quotes_BTCUSD_20240617
["timestamp","ask_amount","ask_price","bid_price","bid_amount"]
[1718610412111,0.00085,66220.0,66219.0,1.6051979]
[1718610412326,0.00085,66220.0,66219.0,3.4072259]
[1718610413476,0.00185,66220.0,66219.0,3.4122259]
[1718610414180,0.00285,66220.0,66219.0,3.4202259]
[1718610414395,0.00285,66220.0,66219.0,3.5631585]
[1718610415289,0.00285,66220.0,66219.0,3.4631585]
[1718610415507,0.00285,66220.0,66219.0,1.2590025]
[1718610415738,0.00285,66220.0,66219.0,0.2903999]
[1718610416026,0.00285,66220.0,66219.0,0.6430279]
[1718610416027,0.06665,66220.0,66219.0,0.6430279]
[1718610416214,0.06665,66220.0,66219.0,1.0960699]
[1718610416440,0.0793801,66220.0,66219.0,1.2194793]
[1718610416657,0.06565,66220.0,66219.0,1.2314793]
[1718610416869,0.06465,66220.0,66219.0,1.2264793]
[1718610417138,0.06565,66220.0,66219.0,1.2364793]
[1718610417375,0.06565,66220.0,66219.0,1.2164793]
[1718610417579,0.06565,66220.0,66219.0,1.2364793]
[1718610417791,0.06665,66220.0,66219.0,1.22547103]
[1718610418180,0.06665,66220.0,66219.0,0.92344303]
[1718610420033,0.06665,66220.0,66219.0,0.79813919]
[1718610420255,0.14905,66220.0,66219.0,0.14430921]
[1718610420450,0.300061,66220.0,66219.0,0.14430921]
[1718610420646,0.31273381,66220.0,66219.0,0.0696]
[1718610420882,0.61475681,66220.0,66219.0,0.0696]
[1718610421097,0.61475681,66220.0,66219.0,0.19491739]
[1718610421340,0.16172281,66220.0,66219.0,0.34593139]
[1718610421561,0.16172281,66220.0,66219.0,0.74676224]
[1718610421777,0.16072281,66220.0,66219.0,0.23312024]
[1718610421984,0.14805,66220.0,66219.0,0.18491739]
[1718610422190,0.16317081,66220.0,66219.0,0.18491739]
[1718610422442,0.16217081,66220.0,66219.0,0.33193139]
[1718610422859,0.16217081,66220.0,66219.0,0.32693139]
[1718610423068,0.16217081,66220.0,66219.0,0.41863114]
[1718610423273,0.16217081,66220.0,66219.0,0.34603114]
[1718610423475,0.16217081,66220.0,66219.0,0.69865914]
[1718610423705,0.16217081,66220.0,66219.0,0.72065914]
[1718610423919,0.14705,66220.0,66219.0,0.67005914]
[1718610424136,0.16217081,66220.0,66219.0,0.24461714]
[1718610424350,0.16217081,66220.0,66219.0,0.17791739]
[1718610424564,0.31318181,66220.0,66219.0,0.17791739]
[1718610425262,0.31318181,66220.0,66219.0,0.12731739]
[1718610425486,0.31318181,66220.0,66219.0,0.17791739]
[1718610425487,0.61520481,66220.0,66219.0,0.17791739]
[1718610425700,0.31318181,66220.0,66219.0,0.17791739]
[1718610425964,0.61520481,66220.0,66219.0,0.18091739]
[1718610426390,0.31318181,66220.0,66219.0,0.20081154]
[1718610427459,0.31318181,66220.0,66219.0,0.18091739]
[1718610430025,0.16217081,66220.0,66219.0,0.18091739]
[1718610431942,0.16217081,66220.0,66219.0,0.20091739]
[1718610432171,0.16217081,66220.0,66219.0,0.18091739]
[1718610432386,0.16217081,66220.0,66219.0,0.35193139]
[1718610432631,0.16217081,66220.0,66219.0,0.51199223]
[1718610432852,0.14705,66220.0,66219.0,0.51199223]
[1718610433327,0.16217079,66220.0,66219.0,0.51199223]
[1718610433557,0.16217079,66220.0,66219.0,0.46139223]
[1718610433795,0.14705,66220.0,66219.0,0.51199223]
[1718610434019,0.14705,66220.0,66219.0,0.51198932]
[1718610434905,0.00085,66220.0,66219.0,1.41807332]
[1718610435161,0.00085,66220.0,66219.0,1.57016111]
[1718610435372,0.00085,66220.0,66219.0,2.02228911]
[1718610435614,0.00085,66220.0,66219.0,2.04039883]
[1718610435845,0.00085,66220.0,66219.0,2.20127341]
[1718610436307,0.00085,66220.0,66219.0,1.94038818]
[1718610436567,0.00085,66220.0,66219.0,1.93738818]
[1718610436791,0.00185,66220.0,66219.0,2.12637248]
[1718610437262,0.00185,66220.0,66219.0,2.27437248]
[1718610437495,0.00185,66220.0,66219.0,2.40627341]
[1718610437717,0.00285,66220.0,66219.0,3.96335492]
[1718610437985,0.151808,66244.0,66233.0,1.226874]
[1718610437986,0.00085,66244.0,66233.0,1.226874]
[1718610438239,0.00085,66244.0,66233.0,1.61521727]
[1718610438474,0.00085,66244.0,66243.0,1.076713]
[1718610438701,0.00085,66244.0,66243.0,1.27940079]
[1718610438928,0.00085,66244.0,66243.0,1.46734517]
[1718610439155,0.00085,66244.0,66243.0,1.56474822]
[1718610439628,0.00085,66244.0,66243.0,1.64044957]
[1718610439852,0.00085,66244.0,66243.0,1.57782063]
[1718610440069,0.00085,66244.0,66243.0,1.64044957]
[1718610440794,0.00085,66244.0,66243.0,1.74044957]
[1718610441006,0.00085,66244.0,66243.0,1.64044957]
[1718610441230,0.00085,66244.0,66243.0,1.64044915]
[1718610441445,0.00085,66244.0,66243.0,1.58782063]
[1718610441693,0.00085,66244.0,66243.0,1.66044965]
[1718610442142,0.00085,66244.0,66243.0,1.59782063]
[1718610443863,0.14295,66244.0,66243.0,0.02]
[1718610444080,0.14295,66244.0,66243.0,0.170959]
[1718610444295,0.16065594,66244.0,66243.0,0.472877]
[1718610444512,0.14295,66244.0,66243.0,0.472877]
[1718610444973,0.14295,66244.0,66243.0,0.5649872]
[1718610445188,0.14295,66244.0,66243.0,0.02]
[1718610445624,0.16069449,66244.0,66243.0,0.170959]
[1718610445846,0.14295,66244.0,66243.0,0.472877]
[1718610446068,0.16069449,66244.0,66243.0,0.5649874]
[1718610446284,0.16069449,66244.0,66243.0,0.8669054]
[1718610446493,0.16069449,66244.0,66243.0,0.2630694]
[1718610446705,0.14295,66244.0,66243.0,0.1121104]
[1718610446882,0.14295,66244.0,66243.0,0.5649874]
[1718610447090,0.16069449,66244.0,66243.0,0.5649874]
[1718610447548,0.14295,66244.0,66243.0,0.2630694]
[1718610448580,0.444864,66244.0,66243.0,0.1121104]
[1718610448782,0.61356549,66244.0,66243.0,0.02]
[1718610449326,0.16069449,66244.0,66243.0,0.02]
[1718610449752,0.31165149,66244.0,66243.0,0.02]
[1718610450099,0.91547949,66244.0,66243.0,0.02]
[1718610450859,0.61356549,66244.0,66243.0,0.02]
[1718610451468,0.91547949,66244.0,66243.0,0.02]
[1718610451665,0.61356549,66244.0,66243.0,0.02]
[1718610452482,0.61356549,66244.0,66243.0,0.0370969]
[1718610453213,0.16069449,66244.0,66243.0,0.1880559]
[1718610453429,0.16069449,66244.0,66243.0,0.0370969]
[1718610454302,0.31165149,66244.0,66243.0,0.0370969]
[1718610455342,0.16069449,66244.0,66243.0,0.0370969]
[1718610456016,0.31165149,66244.0,66243.0,0.0370969]
[1718610456237,0.16069449,66244.0,66243.0,0.0370969]
[1718610458578,0.01859449,66244.0,66243.0,0.4899739]
[1718610458823,0.00085,66244.0,66243.0,0.4899739]
[1718610459041,0.00085,66244.0,66243.0,0.9181919]
[1718610459515,0.00085,66244.0,66243.0,0.6162739]
[1718610460343,0.00085,66244.0,66243.0,1.09027969]
[1718610460766,0.00085,66244.0,66243.0,2.59027969]
[1718610461386,0.00085,66244.0,66243.0,2.89219769]
[1718610461603,0.00085,66244.0,66243.0,1.26464117]
[1718610461812,0.00085,66244.0,66243.0,1.56655917]
[1718610462009,0.00085,66244.0,66243.0,3.06655917]
[1718610462464,0.00085,66244.0,66243.0,1.26464117]
[1718610462686,0.00085,66244.0,66243.0,1.32727186]
[1718610462899,0.00085,66244.0,66243.0,1.30727186]
[1718610463115,0.00085,66244.0,66243.0,1.24464117]
[1718610463543,0.00085,66244.0,66243.0,1.62919019]
[1718610463725,0.00085,66244.0,66243.0,1.32727219]
[1718610463967,0.00085,66244.0,66243.0,1.62919019]
[1718610464570,0.00085,66244.0,66243.0,1.62918591]
[1718610465208,0.00085,66244.0,66243.0,1.62918325]
[1718610466288,0.00085,66244.0,66243.0,1.70218325]
[1718610466494,0.00085,66244.0,66243.0,2.00410125]
[1718610466743,0.00085,66244.0,66243.0,1.70218325]
[1718610467036,0.00085,66244.0,66243.0,1.70217191]
[1718610467243,0.00085,66244.0,66243.0,1.66917191]
[1718610467692,0.00085,66244.0,66243.0,1.68317191]
[1718610467866,0.00085,66244.0,66243.0,1.67317191]
[1718610468086,0.00085,66244.0,66243.0,1.30125391]
[1718610468323,0.00085,66244.0,66243.0,0.98424532]
[1718610468717,0.00085,66244.0,66243.0,1.28616332]
[1718610469122,0.00085,66244.0,66243.0,1.58808132]
[1718610469344,0.00085,66244.0,66243.0,0.68232732]
[1718610469557,0.00085,66244.0,66243.0,1.28616332]
[1718610469763,0.00085,66244.0,66243.0,1.58808132]
[1718610470221,0.00085,66244.0,66243.0,1.26616332]
[1718610470437,0.00085,66244.0,66243.0,1.28616332]
[1718610471310,0.14375,66244.0,66243.0,0.51136832]
[1718610471563,0.14375,66244.0,66243.0,0.36797142]
[1718610471785,0.16153374,66244.0,66243.0,0.36797142]
[1718610472014,0.16153374,66244.0,66243.0,0.30534288]
[1718610472247,0.16153374,66244.0,66243.0,0.36797819]
[1718610472465,0.16153374,66244.0,66243.0,0.51893719]
[1718610472685,0.46344774,66244.0,66243.0,0.2158904]
[1718610472903,0.46344774,66244.0,66243.0,0.15325509]
[1718610472904,0.61440474,66244.0,66243.0,0.15325509]
[1718610473123,0.31249074,66244.0,66243.0,0.15325509]
[1718610473547,0.16153374,66244.0,66243.0,0.028]
[1718610473758,0.16153374,66244.0,66243.0,0.1392728]
[1718610473998,0.16153374,66244.0,66243.0,0.19849018]
[1718610474215,0.16153374,66244.0,66243.0,0.35244918]
[1718610474615,0.16153374,66244.0,66243.0,0.20149018]
[1718610474856,0.16153374,66244.0,66243.0,0.1422728]
[1718610475070,0.16153374,66244.0,66243.0,0.1282728]
[1718610475302,0.16153374,66244.0,66243.0,0.2792318]
[1718610475515,0.16153374,66244.0,66243.0,0.2812318]
[1718610475735,0.16153374,66244.0,66243.0,0.1302728]
[1718610475942,0.16153374,66244.0,66243.0,0.17349378]
[1718610476362,0.31249074,66244.0,66243.0,0.17349378]
[1718610476579,0.16153374,66244.0,66243.0,0.17349378]
[1718610477081,0.31249074,66244.0,66243.0,0.17349378]
[1718610477328,0.16153374,66244.0,66243.0,0.17349378]
[1718610477761,0.16153374,66244.0,66243.0,0.32445278]
[1718610478206,0.16153374,66244.0,66243.0,0.17349378]
[1718610479528,0.16153374,66244.0,66243.0,0.04822098]
[1718610479747,0.61440474,66244.0,66243.0,0.005]
[1718610481190,0.91631874,66244.0,66243.0,0.005]
[1718610481410,1.21823274,66244.0,66243.0,0.005]
[1718610482453,0.91631874,66244.0,66243.0,0.005]
[1718610484700,1.21823274,66244.0,66243.0,0.005]
[1718610485044,1.53146606,66244.0,66243.0,0.005]
[1718610485465,1.57667805,66244.0,66243.0,0.005]
[1718610485685,1.59661642,66244.0,66243.0,0.005]
[1718610485914,1.59662507,66244.0,66243.0,0.005]
[1718610486155,1.55141308,66244.0,66243.0,0.005]
[1718610486822,1.55141308,66244.0,66243.0,0.002]
[1718610487248,1.59661975,66244.0,66243.0,0.003]
[1718610487509,1.59661975,66244.0,66234.0,0.000935]
[1718610487510,0.897787,66235.0,66234.0,0.000935]
[1718610487752,1.35227311,66235.0,66234.0,0.000935]
[1718610488006,1.6746114,66235.0,66234.0,0.000935]
[1718610488263,1.67461385,66235.0,66234.0,0.000935]
[1718610488437,1.62673009,66235.0,66234.0,0.000935]
[1718610489126,1.62773009,66235.0,66234.0,0.001935]
[1718610489341,1.6729059,66235.0,66234.0,0.001935]
[1718610490259,1.6799059,66235.0,66234.0,0.002935]
[1718610490478,1.63473009,66235.0,66234.0,0.002935]
[1718610491326,1.32143936,66235.0,66234.0,0.002935]
[1718610491965,1.63474201,66235.0,66234.0,0.002935]
[1718610492404,1.32143936,66235.0,66234.0,0.002935]
[1718610494242,1.62339436,66235.0,66234.0,0.002935]
[1718610494921,1.93670784,66235.0,66234.0,0.002935]
[1718610499772,2.03670784,66235.0,66234.0,0.002935]
[1718610499987,1.93670784,66235.0,66234.0,0.002935]
[1718610503485,1.98730784,66235.0,66234.0,0.002935]
[1718610503692,2.29148342,66235.0,66234.0,0.002935]
[1718610503906,2.69343842,66235.0,66234.0,0.002935]
[1718610504114,2.80356326,66235.0,66234.0,0.002935]
[1718610504333,2.84222997,66235.0,66234.0,0.002935]
[1718610504747,2.80356326,66235.0,66234.0,0.002935]
[1718610504951,2.84059051,66235.0,66234.0,0.001935]
[1718610505216,2.84359051,66235.0,66234.0,0.002935]
[1718610505464,2.44163551,66235.0,66234.0,0.002935]
[1718610505693,2.43863551,66235.0,66234.0,0.001935]
[1718610505920,2.54163551,66235.0,66234.0,0.002935]
[1718610506161,2.53463551,66235.0,66234.0,0.001935]
[1718610506400,2.43463551,66235.0,66234.0,0.001935]
[1718610506623,2.43463551,66235.0,66234.0,0.002935]
[1718610506624,2.39803551,66235.0,66234.0,0.002935]
[1718610506862,2.44863551,66235.0,66234.0,0.002935]
[1718610507077,2.12132203,66235.0,66234.0,0.001935]
[1718610507295,2.44866459,66235.0,66234.0,0.001935]
[1718610507726,2.54866459,66235.0,66234.0,0.001935]
[1718610508656,2.53853975,66235.0,66234.0,0.001935]
[1718610508872,2.54869315,66235.0,66234.0,0.001935]
[1718610510387,2.54945908,66235.0,66234.0,0.001935]
[1718610511437,2.54934023,66235.0,66234.0,0.001935]
[1718610515252,2.54922443,66235.0,66234.0,0.001935]
[1718610516288,2.59428081,66235.0,66234.0,0.001935]
[1718610516505,2.5941898,66235.0,66234.0,0.001935]
[1718610517711,2.54911593,66235.0,66234.0,0.001935]
[1718610517899,2.44911593,66235.0,66234.0,0.001935]
[1718610518104,2.54911593,66235.0,66234.0,0.001935]
[1718610518528,2.59420442,66235.0,66234.0,0.001935]
[1718610518741,2.61672674,66235.0,66234.0,0.001935]
[1718610519147,2.54911593,66235.0,66234.0,0.001935]
[1718610519293,2.61672674,66235.0,66234.0,0.001935]
[1718610520344,2.54911593,66235.0,66234.0,0.001935]
[1718610521192,2.61677394,66235.0,66234.0,0.001935]
[1718610521403,2.88379957,66235.0,66234.0,0.001935]
[1718610521587,2.88387529,66235.0,66234.0,0.001935]
[1718610522180,2.97402304,66235.0,66234.0,0.001935]
[1718610523345,2.88387529,66235.0,66234.0,0.001935]
[1718610524442,2.99655998,66235.0,66234.0,0.001935]
[1718610524878,3.02019248,66235.0,66234.0,0.001935]
[1718610525310,2.90750779,66235.0,66234.0,0.001935]
[1718610526672,2.92750809,66235.0,66234.0,0.001935]
[1718610526943,2.93768114,66235.0,66234.0,0.001935]
[1718610527172,2.90757386,66235.0,66234.0,0.001935]
[1718610527599,2.80757386,66235.0,66234.0,0.001935]
[1718610528257,2.83768199,66235.0,66234.0,0.001935]
[1718610528472,2.80757386,66235.0,66234.0,0.001935]
[1718610528688,2.8376821,66235.0,66234.0,0.001935]
[1718610530587,2.83768277,66235.0,66234.0,0.001935]
[1718610531218,3.0733419,66235.0,66234.0,0.001935]
[1718610531417,3.40287454,66235.0,66234.0,0.001935]
[1718610531620,3.87143619,66235.0,66234.0,0.001935]
[1718610531828,3.88889504,66235.0,66234.0,0.001935]
[1718610532035,4.03949504,66235.0,66234.0,0.001935]
[1718610532377,3.90383591,66235.0,66234.0,0.001935]
[1718610532806,3.43382206,66235.0,66234.0,0.001935]
[1718610534758,3.43370797,66235.0,66234.0,0.001935]
[1718610536348,3.11108181,66235.0,66234.0,0.001935]
[1718610536551,2.48667547,66235.0,66234.0,0.001935]
[1718610536869,1.98800558,66235.0,66234.0,0.001935]
[1718610538453,1.05707469,66235.0,66234.0,0.001935]
[1718610538660,1.20805169,66235.0,66234.0,0.001935]
[1718610538869,1.26001769,66235.0,66234.0,0.001935]
[1718610539327,0.82462216,66235.0,66234.0,0.001935]
[1718610539549,1.11257716,66235.0,66234.0,0.001935]
[1718610539759,1.44719611,66235.0,66234.0,0.001935]
[1718610539964,1.84668809,66235.0,66234.0,0.001935]
[1718610540415,1.76299886,66235.0,66234.0,0.001935]
[1718610540644,1.76299886,66235.0,66234.0,0.000935]
[1718610540889,1.88517149,66235.0,66234.0,0.001935]
[1718610541108,1.89717997,66235.0,66234.0,0.002935]
[1718610541347,1.91711834,66235.0,66234.0,0.002935]
[1718610541761,1.80393316,66235.0,66234.0,0.002935]
[1718610542655,1.89232795,66235.0,66234.0,0.002935]
[1718610542870,1.76035966,66235.0,66234.0,0.002935]
[1718610543326,1.87352211,66235.0,66234.0,0.002935]
[1718610543794,1.76035966,66235.0,66234.0,0.002935]
[1718610544791,1.87352211,66235.0,66234.0,0.002935]
[1718610545108,1.76035966,66235.0,66234.0,0.002935]
[1718610546850,1.76026705,66235.0,66234.0,0.002935]
[1718610547464,1.85077005,66235.0,66234.0,0.002935]
[1718610547712,1.76026705,66235.0,66234.0,0.002935]
[1718610547926,1.755533,66235.0,66234.0,0.002935]
[1718610548106,1.84603593,66235.0,66234.0,0.002935]
[1718610549304,1.85077015,66235.0,66234.0,0.002935]
[1718610549505,1.76027135,66235.0,66234.0,0.002935]
[1718610549712,1.45831635,66235.0,66234.0,0.002935]
[1718610550027,1.54407698,66235.0,66234.0,0.002935]
[1718610550583,1.18681112,66235.0,66234.0,0.002935]
[1718610550978,1.11894466,66235.0,66234.0,0.002935]
[1718610551395,1.18680561,66235.0,66234.0,0.002935]
[1718610552026,1.11894466,66235.0,66234.0,0.002935]
[1718610552477,1.42089966,66235.0,66234.0,0.002935]
[1718610553618,1.48875365,66235.0,66234.0,0.002935]
[1718610554712,1.50869202,66235.0,66234.0,0.002935]
[1718610555559,1.44083803,66235.0,66234.0,0.002935]
[1718610556224,1.775471,66235.0,66234.0,0.002935]
[1718610556836,1.920671,66235.0,66234.0,0.002935]
[1718610557048,2.01585906,66235.0,66234.0,0.002935]
[1718610557913,2.01583651,66235.0,66234.0,0.002935]
[1718610558336,1.99589814,66235.0,66234.0,0.002935]
[1718610558544,1.93009814,66235.0,66234.0,0.002935]
[1718610558956,1.83963616,66235.0,66234.0,0.002935]
[1718610559174,1.83963527,66235.0,66234.0,0.002935]
[1718610559594,1.93009589,66235.0,66234.0,0.002935]
[1718610561356,1.83963527,66235.0,66234.0,0.002935]
[1718610561562,1.83963526,66235.0,66234.0,0.002935]
[1718610563011,1.85957363,66235.0,66234.0,0.002935]
[1718610563660,1.85957392,66235.0,66234.0,0.002935]
[1718610564291,1.95003411,66235.0,66234.0,0.002935]
[1718610565539,1.97881572,66235.0,66234.0,0.002935]
[1718610565740,1.95003411,66235.0,66234.0,0.002935]
[1718610565985,1.97881557,66235.0,66234.0,0.002935]
[1718610566795,1.9588772,66235.0,66234.0,0.002935]
[1718610567860,0.88315204,66235.0,66234.0,0.002935]
[1718610568079,0.86692086,66235.0,66234.0,0.052035]
[1718610568283,1.47083055,66235.0,66234.0,0.052035]
[1718610568488,1.42559879,66235.0,66234.0,0.052035]
[1718610568697,1.49344779,66235.0,66234.0,0.052035]
[1718610568952,1.49315129,66235.0,66234.0,0.052035]
[1718610570220,1.48845216,66235.0,66234.0,0.052035]
[1718610570436,1.48845216,66235.0,66234.0,0.002935]
[1718610570687,1.42060316,66235.0,66234.0,0.002935]
[1718610570899,1.43000165,66235.0,66234.0,0.002935]
[1718610571690,1.12804662,66235.0,66234.0,0.002935]
[1718610572509,0.36846041,66235.0,66234.0,0.2638775]
[1718610572721,0.36846041,66235.0,66234.0,0.253614]
[1718610572933,0.04985242,66235.0,66234.0,0.68087173]
[1718610573130,0.04985242,66235.0,66234.0,0.37891273]
[1718610573335,0.03769925,66235.0,66234.0,0.38409597]
[1718610573545,0.04985141,66235.0,66234.0,0.38409597]
[1718610573745,0.04515216,66235.0,66234.0,0.38409597]
[1718610574410,0.19612916,66235.0,66234.0,0.23311697]
[1718610574617,0.19612916,66235.0,66234.0,0.102635]
[1718610575468,0.04515216,66235.0,66234.0,0.102635]
[1718610576903,0.04515216,66235.0,66234.0,0.253614]
[1718610577519,0.04515216,66235.0,66234.0,0.102635]
[1718610579558,0.04515216,66235.0,66234.0,0.1581948]
[1718610579766,0.19612916,66235.0,66234.0,0.1581948]
[1718610580418,0.19612916,66235.0,66234.0,0.1075948]
[1718610583596,0.49808416,66235.0,66234.0,0.052035]
[1718610585558,0.04515216,66235.0,66234.0,0.052035]
[1718610585807,0.19612916,66235.0,66234.0,0.052035]
[1718610586472,0.04515216,66235.0,66234.0,0.504973]
[1718610586732,0.03615216,66235.0,66234.0,1.1854483]
[1718610586959,0.01215216,66235.0,66234.0,1.00777885]
[1718610587174,0.016,66235.0,66234.0,1.00977885]
[1718610587596,0.009,66235.0,66234.0,1.00877885]
[1718610588097,0.01,66235.0,66234.0,1.01577885]
[1718610588553,0.009,66235.0,66234.0,1.46282564]
[1718610589006,0.00085,66243.0,66242.0,0.774807]
[1718610589216,0.00085,66243.0,66242.0,0.874507]
[1718610589663,0.02447306,66243.0,66242.0,0.874507]
[1718610589885,0.02447306,66243.0,66242.0,1.30170001]
[1718610590324,0.00085,66243.0,66242.0,1.30170001]
[1718610590537,0.00685,66243.0,66242.0,1.32109569]
[1718610590746,0.00085,66243.0,66242.0,1.32109569]
[1718610591182,0.00085,66243.0,66242.0,1.42309569]
[1718610591395,0.00085,66243.0,66242.0,1.47518348]
[1718610591605,0.00085,66243.0,66242.0,1.57318348]
[1718610592104,0.00085,66243.0,66242.0,1.57718348]
[1718610592363,0.00185,66243.0,66242.0,1.87910648]
[1718610592575,0.00085,66243.0,66242.0,1.97910648]
[1718610592804,0.00085,66243.0,66242.0,1.92850648]
[1718610593014,0.00085,66243.0,66242.0,1.97910648]
[1718610593231,0.00085,66243.0,66242.0,1.97510648]
[1718610593486,0.00085,66243.0,66242.0,1.87510648]
[1718610593699,0.00085,66243.0,66242.0,1.89010648]
[1718610593912,0.00085,66243.0,66242.0,1.88310648]
[1718610594122,0.00085,66243.0,66242.0,1.97510648]
[1718610594394,0.00085,66243.0,66242.0,2.02510648]
[1718610594572,0.00085,66243.0,66242.0,2.35002948]
[1718610594784,0.00085,66243.0,66242.0,2.36302948]
[1718610594988,0.00085,66243.0,66242.0,2.41302948]
[1718610595200,0.00085,66243.0,66242.0,2.42502948]
[1718610595420,0.00086,66245.0,66243.0,1.528631]
[1718610595684,0.00086,66245.0,66243.0,2.3375359]
[1718610595895,0.00086,66245.0,66244.0,1.325799]
[1718610596111,0.07690389,66262.0,66261.0,0.521854]
[1718610596317,0.00086,66262.0,66261.0,1.2283114]
[1718610596956,0.00086,66262.0,66261.0,1.38039919]
[1718610597802,0.00286,66262.0,66261.0,1.39839919]
[1718610599729,0.00286,66262.0,66261.0,0.22227319]
[1718610599979,0.00286,66262.0,66261.0,0.27287319]
[1718610600198,0.00286,66262.0,66261.0,0.219518]
[1718610600414,0.01505176,66262.0,66261.0,0.521354]
[1718610600641,0.00286,66262.0,66261.0,0.521354]
[1718610600884,0.00286,66262.0,66261.0,0.018]
[1718610600885,0.455608,66262.0,66261.0,0.018]
[1718610601097,0.00286,66262.0,66261.0,0.018]
[1718610601323,0.01414552,66262.0,66261.0,0.008]
[1718610601734,0.16506152,66262.0,66261.0,0.008]
[1718610602169,0.01414552,66262.0,66261.0,0.008]
[1718610602381,0.01414552,66262.0,66260.0,0.0506]
[1718610602382,0.301836,66261.0,66252.0,0.02]
[1718610602596,0.301836,66261.0,66256.0,0.15208779]
[1718610602597,0.150924,66259.0,66256.0,0.15208779]
[1718610602809,0.01228501,66260.0,66258.0,0.0506]
[1718610603031,0.452756,66261.0,66258.0,0.0506]
[1718610603253,0.00186,66262.0,66258.0,0.201524]
[1718610603458,0.00186,66262.0,66256.0,0.45394379]
[1718610603459,0.45461,66262.0,66261.0,0.0506]
[1718610603672,0.45361,66262.0,66261.0,0.0506]
[1718610604090,0.45361,66262.0,66261.0,0.07086878]
[1718610604494,0.152778,66262.0,66261.0,0.07086878]
[1718610604702,0.152778,66262.0,66261.0,0.0506]
[1718610604909,0.756442,66262.0,66261.0,0.0506]
[1718610605996,0.755442,66262.0,66261.0,0.0506]
[1718610606415,0.755442,66262.0,66261.0,0.0536]
[1718610607910,1.057274,66262.0,66261.0,0.004]
[1718610608125,1.199274,66262.0,66261.0,0.004]
[1718610608787,0.897442,66262.0,66261.0,0.004]
[1718610609003,0.00086,66262.0,66261.0,0.98127779]
[1718610609247,0.00086,66262.0,66261.0,0.82666957]
[1718610610347,0.00086,66262.0,66261.0,1.43034157]
[1718610610568,0.00086,66262.0,66261.0,1.55556493]
[1718610611006,0.00086,66262.0,66261.0,1.25372893]
[1718610611222,0.00086,66262.0,66261.0,1.12850557]
[1718610611461,0.00086,66262.0,66261.0,1.2537303]
[1718610611682,0.00086,66262.0,66261.0,1.12850557]
[1718610612341,0.00086,66262.0,66261.0,1.25373046]
[1718610612558,0.00086,66262.0,66261.0,1.55256646]
[1718610613006,0.00186,66262.0,66261.0,1.58756646]
[1718610613227,0.00186,66262.0,66261.0,1.68756646]
[1718610613492,0.00086,66262.0,66261.0,1.67556646]
[1718610613935,0.00186,66262.0,66261.0,1.68655995]
[1718610614394,0.00286,66262.0,66261.0,1.69755995]
[1718610615254,0.00286,66262.0,66261.0,1.69756114]
[1718610618892,0.00286,66262.0,66261.0,1.79756114]
[1718610619569,0.00286,66262.0,66261.0,1.69756114]
[1718610621441,0.00286,66262.0,66261.0,1.79756114]
[1718610622096,0.00286,66262.0,66261.0,1.84756114]
[1718610622955,0.00286,66262.0,66261.0,1.74756114]
[1718610623167,0.00086,66262.0,66261.0,2.01973761]
[1718610623381,0.00086,66262.0,66261.0,2.04277084]
[1718610623382,0.00186,66262.0,66261.0,2.04277084]
[1718610623595,0.00286,66262.0,66261.0,2.05677084]
[1718610623815,0.00286,66262.0,66261.0,2.04773761]
[1718610623995,0.00186,66262.0,66261.0,2.01567145]
[1718610624224,0.00186,66262.0,66261.0,2.03373557]
[1718610624445,0.00186,66262.0,66261.0,2.03373564]
[1718610624667,0.00186,66262.0,66261.0,1.93373579]
[1718610624909,0.00086,66262.0,66261.0,1.91973579]
[1718610625042,0.00086,66262.0,66261.0,1.93373579]
[1718610625272,0.00086,66262.0,66261.0,1.91567145]
[1718610625482,0.00086,66262.0,66261.0,2.33557163]
[1718610625681,0.00086,66262.0,66261.0,2.01567145]
[1718610626101,0.00086,66262.0,66261.0,2.33150745]
[1718610626856,0.00086,66262.0,66261.0,2.31750745]
[1718610627071,0.00086,66262.0,66261.0,2.33150745]
[1718610627552,0.00086,66262.0,66261.0,2.31750745]
[1718610627758,0.00086,66262.0,66261.0,2.31798901]
[1718610627977,0.00086,66262.0,66261.0,2.33198901]
[1718610628643,0.00086,66262.0,66261.0,2.31798901]
[1718610628889,0.00086,66262.0,66261.0,2.31808454]
[1718610629077,0.00086,66262.0,66261.0,3.83208454]
[1718610629282,0.00086,66262.0,66261.0,3.81808454]
[1718610629628,0.00086,66262.0,66261.0,3.83208454]
[1718610629809,0.00086,66262.0,66261.0,3.88975832]
[1718610630004,0.00086,66262.0,66261.0,3.83208454]
[1718610630433,0.00085,66264.0,66263.0,1.577321]
[1718610630674,0.00085,66264.0,66263.0,2.06903505]
[1718610630841,0.00085,66264.0,66263.0,2.24673244]
[1718610631244,0.00085,66264.0,66263.0,3.75576305]
[1718610631649,0.00085,66264.0,66263.0,3.74673244]
[1718610631855,0.00085,66264.0,66263.0,1.84490544]
[1718610632106,0.00085,66264.0,66263.0,1.44397844]
[1718610632328,0.00085,66264.0,66263.0,0.79818348]
[1718610632590,0.00085,66264.0,66263.0,0.84878348]
[1718610633017,0.00085,66264.0,66263.0,1.15061048]
[1718610633189,0.00085,66264.0,66263.0,1.16461048]
[1718610633404,0.00085,66264.0,66263.0,1.46643748]
[1718610633610,0.07775,66264.0,66263.0,0.81518348]
[1718610633859,0.07775,66264.0,66263.0,0.88578348]
[1718610634068,0.07775,66264.0,66263.0,1.18761048]
[1718610634487,0.07775,66264.0,66263.0,1.20161048]
[1718610635258,0.00085,66264.0,66263.0,1.20161048]
[1718610635467,0.00085,66264.0,66263.0,1.50343748]
[1718610635667,0.00085,66264.0,66263.0,1.48943748]
[1718610635924,0.00085,66264.0,66263.0,1.20161048]
[1718610636073,0.00085,66264.0,66263.0,1.50343748]
[1718610636267,0.00085,66264.0,66263.0,1.48943748]
[1718610636611,0.00085,66264.0,66263.0,1.58943748]
[1718610636821,0.00085,66264.0,66263.0,1.55253748]
[1718610637438,0.00085,66264.0,66263.0,1.53853748]
[1718610637873,0.00085,66264.0,66263.0,1.55253748]
[1718610639854,0.00085,66264.0,66263.0,1.6777538]
[1718610640508,0.00085,66264.0,66263.0,3.3277538]
[1718610640716,0.00085,66264.0,66263.0,3.3527791]
[1718610640894,0.00085,66264.0,66263.0,3.4033791]
[1718610641569,0.00085,66264.0,66263.0,2.6300251]
[1718610641749,0.07695,66264.0,66263.0,1.21869103]
[1718610641954,0.08912773,66264.0,66263.0,1.34489273]